bitfinex-derivatives/quotes_SOLF0:USTF0_20250703
["timestamp","ask_amount","ask_price","bid_price","bid_amount"]
[1751534609234,4.5879,155.92,155.85,44.74]
[1751534609433,4.5879,155.92,155.86,3.61105285]
[1751534609634,6.4118,155.91,155.87,6.4134]
[1751534609840,6.4118,155.91,155.85,48.35105285]
[1751534610432,6.4118,155.91,155.87,6.4132]
[1751534610735,3.61105285,155.89,155.85,51.154]
[1751534610938,3.61105285,155.89,155.85,44.74]
[1751534611134,10.02445285,155.88,155.85,44.74]
[1751534611333,3.61105285,155.88,155.85,44.74]
[1751534611640,6.4135,155.87,155.85,44.74]
[1751534612335,3.61105285,155.88,155.85,44.74]
[1751534612730,4.91105285,155.89,155.85,51.154]
[1751534612934,6.413,155.88,155.85,44.74]
[1751534614441,6.413,155.88,155.85,51.1542]
[1751534614635,6.413,155.88,155.85,44.74]
[1751534615739,10.02405285,155.88,155.85,44.74]
[1751534616843,6.4134,155.87,155.85,44.74]
[1751534617243,10.02425285,155.88,155.85,44.74]
[1751534617440,1.3,155.89,155.85,48.35105285]
[1751534618437,1.3,155.89,155.88,6.413]
[1751534619443,1.3,155.89,155.88,194.853]
[1751534625046,10.02215285,155.93,155.9,6.4121]
[1751534625849,6.4115,155.92,155.9,6.4121]
[1751534626047,3.61105285,155.93,155.9,6.4121]
[1751534626646,10.02225285,155.93,155.9,6.4121]
[1751534629152,3.61105285,155.93,155.85,49.1172]
[1751534629350,3.61105285,155.91,155.86,188.12]
[1751534629553,5.96264877,155.95,155.86,188.12]
[1751534629750,3.61105285,155.92,155.89,6.4124]
[1751534630452,10.02275285,155.92,155.89,6.4124]
[1751534631254,3.61105285,155.92,155.9,6.4122]
[1751534632455,3.61105285,155.94,155.91,6.4118]
[1751534633052,3.61105285,155.94,155.88,3.61105285]
[1751534633554,5.99017195,155.97,155.88,3.61105285]
[1751534633754,3.61105285,155.97,155.9,3.61105285]
[1751534634055,3.61105285,155.97,155.9,48.71105285]
[1751534634356,6.4102,155.95,155.92,6.4113]
[1751534634552,5.99017195,155.98,155.9,48.71105285]
[1751534634744,3.61105285,155.97,155.9,48.71105285]
[1751534634949,6.41,155.96,155.93,6.4108]
[1751534635351,10.02105285,155.96,155.93,6.4108]
[1751534635757,6.4101,155.95,155.93,6.4108]
[1751534636058,3.61105285,155.96,155.9,45.1]
[1751534636354,10.02105285,155.96,155.9,45.1]
[1751534636860,10.02105285,155.96,155.92,6.4111]
[1751534637555,6.4102,155.95,155.92,6.4111]
[1751534638655,3.61105285,155.94,155.9,45.1]
[1751534639146,10.02225285,155.93,155.9,51.5122]
[1751534639557,3.61105285,155.93,155.9,45.1]
[1751534640652,6.4114,155.92,155.9,45.1]
[1751534641053,10.02245285,155.92,155.9,45.1]
[1751534641459,6.4118,155.91,155.9,45.1]
[1751534641855,3.61105285,155.92,155.9,45.1]
[1751534642055,6.4114,155.92,155.9,51.5121]
[1751534642359,3.61105285,155.93,155.9,45.1]
[1751534643263,3.61105285,155.93,155.9,51.512]
[1751534643560,10.02215285,155.93,155.9,51.512]
[1751534644961,3.61105285,155.93,155.9,45.1]
[1751534645260,6.4116,155.92,155.9,45.1]
[1751534646256,6.4118,155.91,155.9,45.1]
[1751534646565,3.61105285,155.91,155.86,44.86]
[1751534646861,3.61105285,155.88,155.86,44.86]
[1751534647253,3.61105285,155.9,155.86,44.86]
[1751534647653,6.4126,155.89,155.86,51.2736]
[1751534648463,10.02335285,155.9,155.87,6.4132]
[1751534649164,6.4126,155.89,155.87,6.4132]
[1751534651260,6.4126,155.89,155.86,51.2737]
[1751534651658,3.61105285,155.89,155.86,51.2737]
[1751534651854,3.61105285,155.89,155.86,44.86]
[1751534652067,3.61105285,155.9,155.86,44.86]
[1751534652269,6.7635,155.92,155.87,6.4134]
[1751534652468,3.61105285,155.91,155.87,6.4134]
[1751534652767,6.4125,155.9,155.87,6.4134]
[1751534653856,6.7635,155.92,155.87,6.4134]
[1751534654059,3.61105285,155.92,155.86,44.86]
[1751534654767,5.99017195,155.94,155.86,44.86]
[1751534655062,3.61105285,155.92,155.86,44.86]
[1751534655565,6.4118,155.91,155.88,6.4129]
[1751534655859,3.61105285,155.9,155.86,44.86]
[1751534656158,3.61105285,155.88,155.82,44.88]
[1751534656356,3.61105285,155.86,155.82,44.88]
[1751534656554,3.61105285,155.86,155.83,6.4148]
[1751534658262,10.02495285,155.86,155.82,51.2953]
[1751534659368,10.02495285,155.86,155.83,6.415]
[1751534659766,3.61105285,155.86,155.83,6.415]
[1751534660268,6.4132,155.88,155.82,44.88]
[1751534660472,3.61105285,155.87,155.82,44.88]
[1751534660861,3.61105285,155.87,155.85,6.4139]
[1751534661670,3.61105285,155.87,155.82,44.88]
[1751534662261,10.02465285,155.87,155.84,6.4144]
[1751534662676,3.61105285,155.85,155.82,44.88]
[1751534663070,3.61105285,155.85,155.77,14.64712195]
[1751534663071,3.61105285,155.83,155.78,50.85688627]
[1751534663275,3.61105285,155.83,155.78,44.88]
[1751534663572,3.61105285,155.83,155.8,6.4163]
[1751534663573,10.02635285,155.83,155.8,6.4163]
[1751534663768,5.99017195,155.89,155.78,44.88]
[1751534663967,3.61105285,155.84,155.81,6.4156]
[1751534664479,6.4151,155.83,155.78,44.88]
[1751534664680,3.61105285,155.84,155.78,44.88]
[1751534664971,57.51797195,155.9,155.78,44.88]
[1751534665274,3.61105285,155.87,155.79,3.61105285]
[1751534665664,6.4145,155.85,155.82,6.4153]
[1751534665870,3.61105285,155.85,155.79,3.61105285]
[1751534666475,6.4147,155.84,155.81,6.4157]
[1751534666667,3.61105285,155.85,155.79,3.61105285]
[1751534666873,3.61105285,155.87,155.79,3.61105285]
[1751534667275,6.4141,155.86,155.79,3.61105285]
[1751534667474,3.61105285,155.87,155.79,3.61105285]
[1751534667673,3.61105285,155.87,155.79,9.58793912]
[1751534667873,10.02475285,155.87,155.84,6.4144]
[1751534672578,3.61105285,155.87,155.84,6.4144]
[1751534672878,3.61105285,155.87,155.78,48.49105285]
[1751534673078,3.61105285,155.85,155.78,44.88]
[1751534673278,3.61105285,155.82,155.8,6.416]
[1751534675672,6.4155,155.82,155.8,6.416]
[1751534676379,6.4152,155.83,155.8,6.416]
[1751534677680,3.61105285,155.84,155.79,6.4166]
[1751534677978,3.61105285,155.82,155.79,6.4166]
[1751534678181,10.02675285,155.82,155.79,6.4166]
[1751534680084,10.02675285,155.82,155.78,44.88]
[1751534680085,10.02675285,155.82,155.8,6.4162]
[1751534680979,6.416,155.81,155.79,6.4166]
[1751534681180,3.61105285,155.82,155.79,6.4166]
[1751534681682,10.02675285,155.82,155.8,6.4162]
[1751534681881,3.61105285,155.82,155.78,44.88]
[1751534682186,3.61105285,155.8,155.78,44.88]
[1751534683082,10.02765285,155.8,155.78,44.88]
[1751534686889,6.4166,155.8,155.78,44.88]
[1751534687592,6.4166,155.8,155.77,6.4174]
[1751534689793,3.61105285,155.79,155.74,44.96]
[1751534690494,3.61105285,155.79,155.75,6.4182]
[1751534690688,3.61105285,155.79,155.74,44.96]
[1751534690994,6.4172,155.78,155.76,6.4179]
[1751534694093,6.4172,155.78,155.75,6.4182]
[1751534694396,6.4176,155.77,155.75,6.4182]
[1751534694787,6.418,155.76,155.74,44.96]
[1751534694994,3.61105285,155.76,155.74,44.96]
[1751534695189,3.61105285,155.76,155.7,47.1813]
[1751534695389,3.61105285,155.76,155.7,44.96]
[1751534695990,6.4188,155.74,155.7,44.96]
[1751534696189,3.61105285,155.76,155.7,44.96]
[1751534696489,6.4178,155.77,155.7,48.57105285]
[1751534696890,6.4178,155.77,155.74,6.4185]
[1751534697091,48.57105285,155.8,155.72,3.61105285]
[1751534697597,48.57105285,155.8,155.75,6.4181]
[1751534698199,6.4176,155.77,155.75,6.4181]
[1751534698905,6.4173,155.78,155.72,3.61105285]
[1751534699702,6.4176,155.77,155.75,6.4182]
[1751534701506,6.4169,155.79,155.76,6.4177]
[1751534701701,3.61105285,155.8,155.76,6.4177]
[1751534702001,6.4172,155.78,155.75,6.4182]
[1751534703004,3.61105285,155.78,155.7,54.54692642]
[1751534703196,3.61105285,155.76,155.7,44.96]
[1751534703507,10.02935285,155.76,155.73,6.4191]
[1751534703699,3.61105285,155.76,155.73,6.4191]
[1751534703895,3.61105285,155.76,155.7,44.96]
[1751534704098,6.4191,155.74,155.71,6.4199]
[1751534704705,10.03015285,155.74,155.71,6.4199]
[1751534705404,3.61105285,155.74,155.7,44.96]
[1751534705617,3.61105285,155.72,155.7,44.96]
[1751534705906,6.42,155.71,155.7,44.96]
[1751534706101,6.42,155.71,155.68,6.4209]
[1751534707699,6.42,155.71,155.66,47.2609]
[1751534707700,6.4198,155.72,155.66,47.2609]
[1751534707900,6.4198,155.72,155.66,234.8209]
[1751534708103,6.4198,155.72,155.69,6.4206]
[1751534709905,6.4201,155.71,155.69,6.4206]
[1751534710904,6.4198,155.72,155.69,6.4206]
[1751534711510,6.4201,155.71,155.69,6.4206]
[1751534713601,6.4198,155.72,155.7,6.4204]
[1751534713806,6.4198,155.72,155.66,234.7209]
[1751534714709,6.4198,155.72,155.69,6.4205]
[1751534714911,6.4201,155.71,155.69,6.4205]
[1751534715408,6.4201,155.71,155.66,234.7209]
[1751534715409,6.4201,155.71,155.68,6.421]
[1751534715910,6.4201,155.71,155.66,234.7209]
[1751534716209,6.4201,155.71,155.69,6.4206]
[1751534716611,6.4198,155.72,155.66,234.7209]
[1751534717613,6.4198,155.72,155.69,6.4206]
[1751534719811,6.4201,155.71,155.69,6.4206]
[1751534721512,10.03085285,155.72,155.7,6.4204]
[1751534721907,3.61105285,155.73,155.7,6.4204]
[1751534722107,6.6284,155.78,155.67,3.61105285]
[1751534722305,3.61105285,155.75,155.67,3.61105285]
[1751534723413,6.419,155.74,155.67,3.61105285]
[1751534723809,6.419,155.74,155.66,234.4809]
[1751534724010,6.419,155.74,155.72,6.4194]
[1751534726113,6.4185,155.75,155.73,6.4192]
[1751534726816,6.4188,155.74,155.72,6.4194]
[1751534728120,6.4186,155.75,155.72,6.4194]
[1751534728320,3.61105285,155.76,155.72,6.4194]
[1751534729525,6.4186,155.75,155.72,6.4194]
[1751534731222,6.4186,155.75,155.73,6.4192]
[1751534731520,6.4186,155.75,155.68,3.61105285]
[1751534731819,6.4189,155.74,155.72,6.4194]
[1751534732015,3.61105285,155.74,155.68,3.61105285]
[1751534732222,3.61105285,155.74,155.67,5.97587357]
[1751534733020,6.4194,155.73,155.71,6.4198]
[1751534733522,3.61105285,155.74,155.67,5.97587357]
[1751534733726,3.61105285,155.74,155.67,5.98655013]
[1751534733915,10.02995285,155.74,155.72,6.4194]
[1751534741126,6.4201,155.71,155.69,6.4207]
[1751534741329,3.61105285,155.71,155.67,5.98655013]
[1751534741529,3.61105285,155.71,155.66,46.8809]
[1751534741728,3.61105285,155.71,155.69,6.4206]
[1751534742226,10.03125285,155.71,155.69,6.4206]
[1751534743230,3.61105285,155.71,155.7,6.4204]
[1751534743632,3.61105285,155.74,155.66,56.47850298]
[1751534744032,6.4196,155.72,155.7,6.4202]
[1751534745933,6.4194,155.73,155.71,6.42]
[1751534747436,3.61105285,155.74,155.68,5.98655013]
[1751534747736,3.61105285,155.76,155.69,187.1]
[1751534747934,6.00312148,155.77,155.69,187.1]
[1751534748132,6.00312148,155.77,155.7,3.61105285]
[1751534748339,16.24257433,155.78,155.71,44.58]
[1751534748534,6.4181,155.76,155.73,6.4191]
[1751534749138,6.4187,155.75,155.71,44.58]
[1751534750338,6.4187,155.75,155.72,6.4195]
[1751534750739,6.4187,155.75,155.71,50.58455991]
[1751534751134,6.6284,155.78,155.71,50.58455991]
[1751534751337,9.61417433,155.8,155.73,3.61105285]
[1751534751640,6.417,155.79,155.76,6.4177]
[1751534752138,6.00312148,155.8,155.73,3.61105285]
[1751534752339,12.41962148,155.8,155.73,3.61105285]
[1751534752733,6.4165,155.8,155.74,6.00455991]
[1751534753240,6.4165,155.8,155.77,6.4172]
[1751534753638,6.4167,155.79,155.77,6.4172]
[1751534754836,6.4167,155.79,155.74,5.99686352]
[1751534755036,6.4167,155.79,155.73,9.60791637]
[1751534756139,6.4165,155.8,155.75,3.61105285]
[1751534756842,6.4165,155.8,155.77,6.4172]
[1751534757043,6.4168,155.79,155.77,6.4172]
[1751534760946,3.61105285,155.79,155.72,16.41581637]
[1751534761140,3.61105285,155.75,155.71,44.58]
[1751534761344,3.61105285,155.73,155.71,44.58]
[1751534761538,6.4196,155.72,155.71,44.58]
[1751534761738,3.61105285,155.73,155.71,44.58]
[1751534762342,10.03045285,155.73,155.71,51.0]
[1751534764144,10.03045285,155.73,155.71,44.58]
[1751534764945,10.03045285,155.73,155.71,50.9999]
[1751534766047,6.4194,155.73,155.71,50.9999]
[1751534770748,6.4203,155.71,155.67,44.58]
[1751534771139,10.42988247,155.78,155.67,48.19105285]
[1751534771341,3.61105285,155.74,155.67,54.18791637]
[1751534772147,6.4198,155.72,155.69,6.4205]
[1751534772644,6.4193,155.73,155.67,54.18791637]
[1751534772951,6.4193,155.73,155.68,5.99686352]
[1751534773250,6.4193,155.73,155.7,6.4201]
[1751534773452,3.61105285,155.76,155.69,3.61105285]
[1751534773652,3.61105285,155.74,155.68,5.99686352]
[1751534773853,3.61105285,155.74,155.7,6.4201]
[1751534774550,6.4194,155.73,155.71,6.42]
[1751534784159,6.4191,155.74,155.72,6.4195]
[1751534784355,3.61105285,155.75,155.68,5.99686352]
[1751534784657,8.04135285,155.78,155.74,6.4185]
[1751534784858,48.19105285,155.8,155.72,44.58]
[1751534785246,6.4173,155.78,155.75,6.4183]
[1751534786358,6.4173,155.78,155.76,6.4179]
[1751534786661,3.61105285,155.82,155.75,3.61105285]
[1751534786849,3.61105285,155.82,155.77,6.4173]
[1751534787050,3.61105285,155.82,155.73,9.60791637]
[1751534787561,3.61105285,155.78,155.72,44.58]
[1751534788060,6.4188,155.74,155.72,44.58]
[1751534788262,3.61105285,155.76,155.72,44.58]
[1751534789061,3.61105285,155.74,155.69,6.4207]
[1751534789458,3.61105285,155.72,155.68,50.57686352]
[1751534789658,3.61105285,155.72,155.68,44.58]
[1751534790356,6.4206,155.7,155.68,44.58]
[1751534790855,3.61105285,155.72,155.68,44.58]
[1751534791160,2.3118,155.75,155.68,44.58]
[1751534791361,3.61105285,155.74,155.68,44.58]
[1751534791660,3.61105285,155.76,155.68,48.19105285]
[1751534791860,3.61105285,155.76,155.68,54.18791637]
[1751534792258,6.4189,155.74,155.72,6.4196]
[1751534792661,3.61105285,155.76,155.69,5.99686352]
[1751534792863,6.4185,155.75,155.72,6.4193]
[1751534793361,6.4189,155.74,155.72,6.4193]
[1751534793559,3.61105285,155.75,155.71,6.4199]
[1751534793860,3.61105285,155.75,155.68,56.35671637]
[1751534793861,6.4194,155.73,155.68,56.35671637]
[1751534794057,6.4194,155.73,155.7,6.4201]
[1751534795162,6.4197,155.72,155.7,6.4201]
[1751534795568,3.61105285,155.73,155.68,44.58]
[1751534795865,6.4206,155.7,155.68,44.58]
[1751534796159,10.03125285,155.71,155.68,44.58]
[1751534796367,6.4202,155.71,155.68,44.58]
[1751534796561,3.61105285,155.72,155.68,51.0011]
[1751534797069,6.4201,155.71,155.68,51.0011]
[1751534800372,2.2367,155.75,155.68,44.58]
[1751534800669,5.84775285,155.75,155.68,48.19105285]
[1751534800872,5.84775285,155.75,155.69,6.4207]
[1751534801273,5.84775285,155.75,155.68,48.19105285]
[1751534801674,6.4194,155.73,155.7,6.4203]
[1751534802377,6.4189,155.74,155.68,54.18791637]
[1751534802871,5.84775285,155.75,155.68,54.18791637]
[1751534803169,6.4194,155.73,155.68,54.18791637]
[1751534803775,3.61105285,155.77,155.7,3.61105285]
[1751534803979,3.61105285,155.77,155.72,6.4195]
[1751534804171,6.4186,155.75,155.72,6.4195]
[1751534804375,6.4186,155.75,155.7,9.60791637]
[1751534805075,6.4186,155.75,155.72,6.4194]
[1751534806975,6.4188,155.74,155.72,6.4194]
[1751534809482,6.4193,155.73,155.7,5.99686352]
[1751534809982,6.4193,155.73,155.69,5.99686352]
[1751534810480,6.4193,155.73,155.7,6.4202]
[1751534810978,6.4197,155.72,155.7,6.4202]
[1751534811180,6.4197,155.72,155.69,12.41756352]
[1751534811677,6.4201,155.71,155.69,5.99686352]
[1751534812382,6.4201,155.71,155.69,12.41756352]
[1751534812587,3.61105285,155.73,155.69,12.41756352]
[1751534812978,6.4199,155.72,155.69,12.41756352]
[1751534813479,3.61105285,155.73,155.69,12.41756352]
[1751534813778,6.4197,155.72,155.69,5.99686352]
[1751534814281,6.4197,155.72,155.69,12.41746352]
[1751534814487,6.4197,155.72,155.69,6.4206]
[1751534815186,6.42,155.71,155.69,6.4206]
[1751534815486,3.61105285,155.73,155.69,6.4206]
[1751534816583,6.4199,155.72,155.69,6.4206]
[1751534816982,6.42,155.71,155.69,6.4206]
[1751534818080,6.4204,155.7,155.68,56.99796352]
[1751534819378,6.4204,155.7,155.68,51.0011]
[1751534819782,6.4208,155.69,155.68,44.58]
[1751534819989,3.61105285,155.71,155.68,44.58]
[1751534820485,6.4201,155.71,155.68,44.58]
[1751534821185,6.4205,155.7,155.68,51.001]
[1751534824192,9.61357068,155.76,155.68,51.001]
[1751534824193,3.61105285,155.73,155.69,6.4206]
[1751534824693,3.61105285,155.71,155.68,44.58]
[1751534824895,3.61105285,155.72,155.68,44.58]
[1751534826593,6.4208,155.69,155.68,44.58]
[1751534831492,6.4206,155.7,155.68,44.58]
[1751534831803,6.4206,155.7,155.68,51.001]
[1751534834505,3.61105285,155.74,155.69,6.4208]
[1751534835007,3.61105285,155.72,155.66,9.61012471]
[1751534835209,3.61105285,155.72,155.67,187.02]
[1751534836206,6.4206,155.7,155.67,187.02]
[1751534836809,6.4206,155.7,155.67,193.4413]
[1751534837010,6.4206,155.7,155.67,187.02]
[1751534837506,3.61105285,155.74,155.67,187.02]
[1751534837910,6.42,155.72,155.69,6.4206]
[1751534838111,3.61105285,155.74,155.69,6.4206]
[1751534838913,6.4201,155.71,155.69,6.4206]
[1751534839313,3.61105285,155.74,155.7,6.4204]
[1751534839707,6.4199,155.72,155.67,187.02]
[1751534840112,3.61105285,155.74,155.67,187.02]
[1751534840311,6.4196,155.72,155.69,6.4206]
[1751534840813,3.61105285,155.74,155.67,187.02]
[1751534840814,6.4194,155.73,155.68,3.61105285]
[1751534841110,7.11504225,155.76,155.7,3.61105285]
[1751534841111,5.99709567,155.76,155.7,3.61105285]
[1751534841314,3.61105285,155.77,155.71,187.02]
[1751534841613,3.61105285,155.77,155.72,6.4194]
[1751534842411,6.4187,155.75,155.72,6.4194]
[1751534842803,3.61105285,155.77,155.71,237.9998]
[1751534843512,4.5777,155.78,155.71,231.58]
[1751534843708,3.61105285,155.77,155.71,231.58]
[1751534844013,3.61105285,155.77,155.72,6.4194]
[1751534844903,6.4186,155.75,155.73,6.4191]
[1751534845108,6.4186,155.75,155.71,231.58]
[1751534846512,6.4186,155.75,155.72,6.4194]
[1751534846812,6.4188,155.74,155.72,6.4194]
[1751534847712,4.5777,155.78,155.71,231.58]
[1751534847713,6.4193,155.73,155.71,231.58]
[1751534847908,3.61105285,155.75,155.71,231.58]
[1751534848309,6.4196,155.72,155.71,231.58]
[1751534849213,6.4189,155.74,155.71,231.58]
[1751534849808,3.61105285,155.77,155.71,231.58]
[1751534850411,6.4186,155.75,155.73,6.4191]
[1751534850610,6.4186,155.75,155.74,186.96]
[1751534855518,10.02965285,155.75,155.74,186.96]
[1751534857323,3.61105285,155.75,155.69,5.99907186]
[1751534857515,3.61105285,155.73,155.7,186.94]
[1751534857721,3.61105285,155.73,155.69,44.54]
[1751534857920,3.61105285,155.73,155.7,186.94]
[1751534858423,6.4196,155.72,155.7,186.94]
[1751534859124,6.4196,155.72,155.7,193.3604]
[1751534859324,6.42,155.71,155.7,186.94]
[1751534859621,6.42,155.71,155.69,44.54]
[1751534859825,10.57479567,155.78,155.7,186.92]
[1751534860026,3.61105285,155.75,155.7,186.92]
[1751534860221,3.61105285,155.77,155.72,6.4194]
[1751534860431,8.27769567,155.78,155.73,186.92]
[1751534860723,5.99709567,155.79,155.76,6.4178]
[1751534860925,6.4168,155.79,155.76,186.94]
[1751534861328,6.4168,155.79,155.76,193.3578]
[1751534861522,68.22403594,155.81,155.76,193.3578]
[1751534861826,64.61298309,155.81,155.76,193.3578]
[1751534862028,68.22403594,155.81,155.76,193.3578]
[1751534862232,6.417,155.79,155.76,193.3578]
[1751534862424,64.61298309,155.81,155.76,186.94]
[1751534862624,64.61298309,155.81,155.76,190.55105285]
[1751534863426,6.4163,155.8,155.78,6.4171]
[1751534866030,6.4163,155.8,155.77,6.4174]
[1751534866334,6.4167,155.79,155.77,6.4174]
[1751534870330,6.4172,155.78,155.72,5.99907186]
[1751534870536,6.4172,155.78,155.73,234.99105285]
[1751534870736,6.4172,155.78,155.73,240.99012471]
[1751534870929,6.4172,155.78,155.75,6.418]
[1751534872436,6.4172,155.78,155.76,6.4179]
[1751534872633,6.4172,155.78,155.77,186.86]
[1751534874936,6.4169,155.79,155.77,186.86]
[1751534877046,6.4171,155.78,155.77,186.86]
[1751534877546,6.4169,155.79,155.77,186.86]
[1751534879550,6.4169,155.79,155.77,193.2775]
[1751534881050,6.4169,155.79,155.77,186.86]
[1751534881449,6.4169,155.79,155.77,193.2774]
[1751534883748,6.4169,155.79,155.77,186.86]
[1751534884250,6.4171,155.78,155.77,186.86]
[1751534885146,6.4169,155.79,155.77,186.86]
[1751534885852,6.4169,155.79,155.77,193.2775]
[1751534886749,6.4165,155.8,155.77,193.2775]
[1751534886953,3.61105285,155.82,155.77,193.2775]
[1751534887247,6.4166,155.8,155.77,193.2775]
[1751534887655,3.61105285,155.83,155.78,6.4169]
[1751534887846,3.61105285,155.83,155.77,186.86]
[1751534887847,6.4163,155.8,155.77,186.86]
[1751534888050,6.4163,155.8,155.77,193.2774]
[1751534888247,6.4163,155.8,155.77,186.86]
[1751534888548,6.4171,155.78,155.77,186.86]
[1751534888956,3.61105285,155.81,155.76,186.78]
[1751534889455,1.61105285,155.81,155.76,186.78]
[1751534890155,6.4175,155.77,155.76,186.78]
[1751534891058,3.61105285,155.77,155.73,44.48]
[1751534891259,3.61105285,155.75,155.73,44.48]
[1751534891853,6.4188,155.74,155.73,44.48]
[1751534894865,3.61105285,155.75,155.73,50.8991]
[1751534894866,6.4185,155.75,155.73,50.8991]
[1751534895668,6.4185,155.75,155.73,44.48]
[1751534896066,3.61105285,155.8,155.73,44.48]
[1751534896367,3.61105285,155.8,155.74,6.4185]
[1751534896567,6.4178,155.77,155.74,6.4185]
[1751534898568,3.61105285,155.78,155.73,50.8991]
[1751534898770,3.61105285,155.78,155.74,186.78]
[1751534899163,3.61105285,155.76,155.71,554.48]
[1751534899468,3.61105285,155.74,155.71,785.74]
[1751534900071,3.61105285,155.74,155.71,598.96]
[1751534900271,3.61105285,155.74,155.71,785.74]
[1751534900576,3.61105285,155.74,155.71,598.96]
[1751534900768,3.61105285,155.74,155.71,785.74]
[1751534901163,6.4196,155.72,155.71,785.74]
[1751534901669,6.4196,155.72,155.71,44.48]
[1751534902676,6.42,155.71,155.7,186.8]
[1751534903074,6.4195,155.73,155.7,186.8]
[1751534903275,5.85675285,155.77,155.7,190.41105285]
[1751534903675,6.4186,155.75,155.72,6.4194]
[1751534903875,6.4186,155.75,155.73,186.78]
[1751534904574,6.4186,155.75,155.73,193.1992]
[1751534904981,6.4182,155.76,155.73,193.1992]
[1751534905174,5.85675285,155.77,155.73,193.1992]
[1751534905976,5.85675285,155.77,155.73,186.78]
[1751534906380,6.4186,155.75,155.73,186.78]
[1751534906878,6.4186,155.75,155.73,193.1992]
[1751534907078,6.4186,155.75,155.73,186.78]
[1751534908483,6.4188,155.74,155.73,186.78]
[1751534910984,6.4185,155.75,155.73,186.78]
[1751534911781,6.4188,155.74,155.73,186.78]
[1751534914784,10.02985285,155.74,155.73,186.78]
[1751534914978,6.4194,155.73,155.71,186.78]
[1751534915178,3.61105285,155.74,155.7,193.2001]
[1751534915681,6.4195,155.73,155.7,193.2001]
[1751534916379,3.61105285,155.74,155.7,193.2001]
[1751534916781,3.61105285,155.74,155.71,6.42]
[1751534917086,6.4194,155.73,155.71,6.42]
[1751534917989,6.4197,155.72,155.7,193.2002]
[1751534919090,6.4194,155.73,155.71,6.42]
[1751534921190,3.61105285,155.75,155.7,193.2002]
[1751534922792,2.2457,155.77,155.71,6.42]
[1751534923090,3.61105285,155.76,155.71,6.42]
[1751534923791,3.61105285,155.76,155.7,193.2002]
[1751534924088,6.4196,155.73,155.7,193.2002]
[1751534924483,3.61105285,155.74,155.69,6.4207]
[1751534924689,3.61105285,155.74,155.69,193.2007]
[1751534925098,3.61105285,155.74,155.69,6.4207]
[1751534925393,3.61105285,155.74,155.69,193.2007]
[1751534925592,6.4202,155.71,155.69,6.4207]
[1751534925788,6.4202,155.71,155.69,193.2007]
[1751534925994,6.4202,155.71,155.69,186.78]
[1751534926990,6.4202,155.71,155.66,10.30370459]
[1751534927188,3.61105285,155.7,155.66,191.094]
[1751534927689,10.03185285,155.7,155.67,6.4214]
[1751534929097,3.61105285,155.7,155.66,6.4219]
[1751534929394,3.61105285,155.7,155.66,186.76]
[1751534930596,6.4209,155.69,155.67,6.4217]
[1751534932093,6.4209,155.69,155.66,186.76]
[1751534932494,6.4209,155.69,155.66,186.78]
[1751534933695,6.4209,155.69,155.67,6.4215]
[1751534936801,3.61105285,155.7,155.65,44.48]
[1751534936996,3.61105285,155.7,155.66,186.78]
[1751534937201,3.61105285,155.7,155.65,44.48]
[1751534937398,3.61105285,155.69,155.65,237.6823]
[1751534937899,6.4218,155.67,155.65,237.6823]
[1751534938803,6.4218,155.67,155.65,50.9023]
[1751534939101,6.4218,155.67,155.65,237.6823]
[1751534940001,6.4218,155.67,155.65,231.26]
[1751534940603,6.4218,155.67,155.65,237.6824]
[1751534940803,3.61105285,155.66,155.63,554.56]
[1751534940997,3.61105285,155.64,155.62,186.78]
[1751534941701,3.61105285,155.64,155.61,50.9039]
[1751534941901,6.4235,155.63,155.62,186.78]